fUST/lending_fUST_20250620
["ID","MTS","AMOUNT","RATE_DAILY","PERIOD"]
[366670235,1750403434303,-574.4346525,0.00022849,2]
[366670236,1750403434313,-177.2294814,0.00022849,2]
[366670237,1750403434324,-158.8689442,0.00022849,2]
[366670238,1750403434335,-574.4346525,0.00022849,2]
[366670239,1750403434346,-153.0,0.00022849,2]
[366670240,1750403434357,-574.4346525,0.00022849,2]
[366670241,1750403434369,-151.0,0.00022865,7]
[366670242,1750403434379,-151.0,0.00022865,7]
[366670243,1750403434389,-668.91079435,0.00022866,8]
[366670244,1750403434399,-510.671,0.00022891,2]
[366670245,1750403434409,-150.0,0.00023,2]
[366670246,1750403434420,-668.91079435,0.00023003,8]
[366670247,1750403434429,-151.0,0.00023013,7]
[366670248,1750403434439,-151.0,0.00023013,7]
[366670249,1750403434448,-485.74,0.00023013,2]
[366670250,1750403434458,-460.0,0.00023013,6]
[366670251,1750403434468,-460.0,0.00023013,6]
[366670252,1750403434478,-2213.43,0.00023013,6]
[366670253,1750403434487,-460.0,0.00023013,6]
[366670254,1750403434497,-549.91,0.00023013,6]
[366670255,1750403434507,-460.0,0.00023013,6]
[366670256,1750403434516,-460.0,0.00023013,6]
[366670257,1750403434526,-460.0,0.00023013,6]
[366670258,1750403434536,-178.05560887,0.00023014,2]
[366670259,1750403434546,-276.0,0.00023109,2]
[366670260,1750403434558,-150.0,0.00023116,2]
[366670261,1750403434567,-333.0,0.00023116,2]
[366670262,1750403434578,-893.44,0.00023131,3]
[366670263,1750403434587,-668.91079435,0.00023141,8]
[366670264,1750403434597,-208.14952326,0.00023211,6]
[366670265,1750403434608,-500.0,0.00023212,2]
[366670266,1750403434620,-500.0,0.00023214,2]
[366670267,1750403434631,-215.0738,0.0002325,2]
[366670268,1750403434640,-668.91079435,0.00023279,8]
[366670269,1750403434650,-485.74,0.00023287,2]
[366670270,1750403434660,-460.0,0.00023287,6]
[366670271,1750403434670,-460.0,0.00023287,6]
[366670272,1750403434679,-2213.43,0.00023287,6]
[366670273,1750403434688,-460.0,0.00023287,6]
[366670274,1750403434698,-549.91,0.00023287,6]
[366670275,1750403434707,-151.0,0.00023287,7]
[366670276,1750403434717,-460.0,0.00023287,6]
[366670277,1750403434727,-460.0,0.00023287,6]
[366670278,1750403434736,-460.0,0.00023287,6]
[366670279,1750403434747,-166.72186,0.00023287,7]
[366670280,1750403434756,-595.6,0.0002329,3]
[366670281,1750403434766,-297.8,0.0002329,3]
[366670282,1750403434776,-350.12135304,0.00023299,2]
[366670283,1750403434786,-25608.670472,0.000233,7]
[366670284,1750403434796,-2576.57,0.000233,7]
[366670285,1750403434806,-402.85,0.000233,7]
[366670286,1750403434815,-154.420416,0.000233,7]
[366670287,1750403434825,-151.0,0.000233,7]
[366670288,1750403434834,-293.139696,0.000233,7]
[366670289,1750403434844,-213.51557418,0.000233,7]
[366670290,1750403434853,-9409.4296457,0.000233,7]
[366670291,1750403434933,-3137.47279682,0.000233,7]
[366670292,1750403434942,-160.0,0.000233,7]
[366670293,1750403434952,-152.60218,0.000233,7]
[366670294,1750403434962,-2769.57331814,0.0002331,3]
[366670335,1750403438114,-270.74668186,0.0002331,3]
[366670336,1750403438124,-178.05560887,0.00023315,2]
[366670337,1750403438134,-168.0,0.00023394,2]
[366670338,1750403438144,-160.0,0.000234,2]
[366670339,1750403438154,-668.91079435,0.00023417,9]
[366670340,1750403438164,-276.0,0.0002349,2]
[366670341,1750403438175,-276.0,0.00023498,2]
[366670342,1750403438185,-420.0,0.00023519,2]
[366670343,1750403438194,-420.0,0.00023521,2]
[366670344,1750403438204,-668.91079435,0.00023555,9]
[366670345,1750403438214,-485.74,0.00023561,2]
[366670346,1750403438224,-151.0,0.00023561,7]
[366670347,1750403438233,-151.0,0.00023561,7]
[366670348,1750403438243,-460.0,0.00023561,6]
[366670349,1750403438258,-460.0,0.00023561,6]
[366670350,1750403438267,-2213.43,0.00023561,6]
[366670351,1750403438278,-460.0,0.00023561,6]
[366670352,1750403438288,-549.91,0.00023561,6]
[366670353,1750403438298,-460.0,0.00023561,6]
[366670354,1750403438308,-460.0,0.00023561,6]
[366670355,1750403438318,-460.0,0.00023561,6]
[366670356,1750403438328,-276.0,0.00023583,2]
[366670357,1750403438337,-729.37,0.000236,2]
[366670358,1750403438347,-5000.0,0.000236,10]
[366670359,1750403438357,-178.05560887,0.00023616,2]
[366670360,1750403438367,-500.0,0.00023659,2]
[366670361,1750403438377,-500.0,0.00023659,2]
[366670362,1750403438386,-151.0,0.00023671,7]
[366670363,1750403438396,-376.47979027,0.00023684,2]
[366670366,1750403439895,-155.0,0.00022131,2]
[366670402,1750403440258,-822.73,0.00022131,2]
[366670404,1750403440269,-123.52020973,0.00023684,2]
[366670406,1750403440280,-668.91079435,0.00023693,9]
[366670408,1750403440291,-651.57234703,0.00023762,2]
[366670410,1750403440301,-668.91079435,0.00023831,10]
[366670412,1750403440311,-152.807259,0.00023835,7]
[366670414,1750403440320,-16.26892635,0.00023835,2]
[366670416,1750403440332,-469.47107365,0.00023835,2]
[366670418,1750403440342,-272.67577278,0.00023835,6]
[366670547,1750403444274,-154.0,0.00023835,6]
[366670554,1750403444757,-303.81059378,0.0002219,2]
[366670600,1750403446189,-129.50708088,0.0002219,2]
[366670601,1750403446200,-500.0,0.0002219,2]
[366670602,1750403446210,-500.0,0.0002219,2]
[366670603,1750403446220,-152.42273743,0.0002219,2]
[366670604,1750403446230,-500.0,0.0002219,2]
[366670605,1750403446240,-500.0,0.0002219,2]
[366670606,1750403446251,-500.0,0.0002219,2]
[366670607,1750403446261,-500.0,0.0002219,2]
[366670608,1750403446271,-202.42273743,0.0002219,2]
[366670609,1750403446282,-500.0,0.0002219,2]
[366670610,1750403446293,-33.32422722,0.00023835,6]
[366670611,1750403446303,-460.0,0.00023835,6]
[366670612,1750403446313,-2213.43,0.00023835,6]
[366670613,1750403446323,-460.0,0.00023835,6]
[366670614,1750403446333,-549.91,0.00023835,6]
[366670615,1750403446343,-295.00157957,0.00023835,6]
[366670616,1750403446354,-460.0,0.00023835,6]
[366670617,1750403446364,-460.0,0.00023835,6]
[366670618,1750403446374,-3015.26094384,0.0002394,7]
[366670619,1750403446384,-414.97353801,0.00023969,10]
[366670620,1750403446397,-253.93725634,0.00023969,10]
[366670621,1750403446407,-310.8355033,0.00023973,2]
[366670622,1750403446433,-189.1644967,0.00023973,2]
[366670623,1750403446444,-500.0,0.00023973,2]
[366670624,1750403446455,-77.47816892,0.00023973,2]
[366670625,1750403448771,-166.283179,0.00023597,2]
[366670626,1750403452935,-158.83822416,0.00021636,2]
[366670627,1750403464860,-168.03110711,0.00021917,6]
[366670628,1750403469564,-240.79549263,0.00021636,2]
[366670629,1750403472459,-273.27838388,0.00021917,6]
[366670630,1750403477884,-18.69050901,0.00021917,6]
[366670631,1750403477913,-164.96949099,0.00021917,6]
[366670632,1750403519829,-300.0,0.00021437,2]
[366670633,1750403524094,-130.9795994,0.00021437,2]
[366670634,1750403524118,-52.6804006,0.00021636,2]
[366670635,1750403531691,205.75524289,0.00020462,2]
[366670636,1750403583951,201.43681089,0.00020462,2]
[366670637,1750403606500,1338.0,0.00025122,120]
[366670639,1750403634252,5000.0,0.000211,2]
[366670640,1750403636112,205.1564275,0.00020947,2]
[366670641,1750403650129,1518.06847913,0.000211,2]
[366670642,1750403650155,3481.93152087,0.000211,2]
[366670643,1750403666712,5000.0,0.000211,2]
[366670644,1750403682762,2206.08597994,0.000211,2]
[366670645,1750403777036,460.0,0.000211,2]
[366670646,1750403846186,851.98249919,0.000211,2]
[366670647,1750403846212,4148.01750081,0.000211,2]
[366670648,1750403850395,-171.58960545,0.00021217,2]
[366670649,1750403850419,-55.13201067,0.00021259,2]
[366670650,1750403853075,150.5,0.0002398,120]
[366670651,1750403853864,150.5,0.0002397,120]
[366670652,1750403854321,150.5,0.0002396,120]
[366670653,1750403915805,219.89608487,0.00020987,2]
[366670654,1750403941650,1000.0,0.00020997,2]
[366670655,1750404023021,173.72652212,0.000211,2]
[366670656,1750404124318,161.1639372,0.00020781,2]
[366670657,1750404155977,1529.38020635,0.00025124,120]
[366670659,1750404175611,167.074575,0.00013699,2]
[366670660,1750404230673,5000.0,0.000211,2]
[366670661,1750404252125,386.7216161,0.00020799,2]
[366670664,1750404394942,165.9966585,0.00020838,2]
[366670665,1750404409032,577.4031054,0.0002084,2]
[366670666,1750404409057,12000.0,0.0002084,2]
[366670667,1750404409082,12000.0,0.0002084,2]
[366670668,1750404409108,9398.6712537,0.0002084,2]
[366670675,1750404472264,2601.3287463,0.00018,2]
[366670676,1750404472289,1731.47085084,0.00018,2]
[366670688,1750404513410,214.4108109,0.00020778,2]
[366670692,1750404522763,1030.67013983,0.0002,120]
[366670700,1750404536328,305.80440967,0.00019,2]
[366670701,1750404554860,203.86960645,0.00019,2]
[366670707,1750404628124,5000.0,0.000211,2]
[366670745,1750404632223,-190.51539325,0.00021259,2]
[366670746,1750404632235,-160.0,0.00021551,2]
[366670747,1750404632245,-455.52543655,0.00021623,2]
[366670748,1750404632255,-3142.86252256,0.00021636,2]
[366670749,1750404632266,-160.0,0.00021779,2]
[366670750,1750404632275,-480.39981884,0.000218,2]
[366670751,1750404632286,-171.58960545,0.00021816,2]
[366670752,1750404632295,-5000.0,0.00021888,2]
[366670753,1750404632306,-251.49027374,0.00021888,2]
[366670754,1750404632315,-156.587,0.00021888,2]
[366670755,1750404632325,-207.4,0.00021888,2]
[366670756,1750404632335,-158.83822416,0.00021888,2]
[366670757,1750404632345,-300.0,0.00021898,2]
[366670758,1750404632355,-1200.0,0.00021898,2]
[366670759,1750404632365,-300.0,0.00021898,2]
[366670760,1750404632374,-300.0,0.00021898,2]
[366670761,1750404632384,-300.0,0.00021898,2]
[366670762,1750404632395,-300.0,0.00021898,2]
[366670763,1750404632405,-300.0,0.000219,2]
[366670764,1750404632415,-41753.77927372,0.000219,2]
[366670765,1750404632425,-591.66591999,0.000219,6]
[366670766,1750404632435,-479.07022859,0.00021901,2]
[366670767,1750404632445,-195.791,0.00021901,2]
[366670768,1750404632456,-176.069,0.00021901,2]
[366670769,1750404632465,-152.6209847,0.00021902,2]
[366670770,1750404632475,-297.8,0.00021907,3]
[366670771,1750404632485,-248.16,0.00021907,3]
[366670772,1750404632496,-744.52,0.00021907,3]
[366670773,1750404632506,-635.14401191,0.00021916,2]
[366670774,1750404632516,-500.0,0.00021916,2]
[366670775,1750404632526,-500.0,0.00021916,2]
[366670776,1750404632536,-500.0,0.00021916,2]
[366670777,1750404632546,-500.0,0.00021916,2]
[366670778,1750404632556,-500.0,0.00021916,2]
[366670779,1750404632567,-500.0,0.00021916,2]
[366670780,1750404632577,-152.42617643,0.00021916,2]
[366670781,1750404632729,-500.0,0.00021898,2]
[366670782,1750404632742,-410.0,0.00021898,2]
[366670783,1750404632752,-500.0,0.00021898,2]
[366670784,1750404632763,-500.0,0.00021898,2]
[366670785,1750404632773,-500.0,0.00021898,2]
[366670786,1750404632784,-500.0,0.00021898,2]
[366670787,1750404632795,-500.0,0.00021898,2]
[366670788,1750404632805,-250.36447654,0.00021898,2]
[366670800,1750404638416,-249.63552346,0.00021898,2]
[366670801,1750404638426,-500.0,0.00021898,2]
[366670802,1750404638436,-500.0,0.00021898,2]
[366670803,1750404638445,-424.85750305,0.00021898,2]
[366670804,1750404638455,-500.0,0.00021898,2]
[366670805,1750404638465,-500.0,0.00021898,2]
[366670806,1750404638479,-500.0,0.00021898,2]
[366670807,1750404638489,-500.0,0.00021898,2]
[366670808,1750404638499,-335.0,0.00021898,2]
[366670809,1750404638510,-262.24860329,0.00021898,2]
[366670810,1750404638520,-500.0,0.00021898,2]
[366670811,1750404638530,-500.0,0.00021898,2]
[366670812,1750404638539,-500.0,0.00021898,2]
[366670813,1750404638549,-500.0,0.00021898,2]
[366670814,1750404638560,-500.0,0.00021898,2]
[366670815,1750404638570,-392.57591579,0.00021898,2]
[366670816,1750404638580,-500.0,0.00021898,2]
[366670817,1750404638589,-500.0,0.00021898,2]
[366670818,1750404638600,-500.0,0.00021898,2]
[366670819,1750404638610,-500.0,0.00021898,2]
[366670820,1750404638619,-573.49650641,0.00021898,2]
[366670821,1750404638629,-500.0,0.00021898,2]
[366670822,1750404638639,-347.57382357,0.00021916,2]
[366670823,1750404638650,-500.0,0.00021916,2]
[366670824,1750404638660,-500.0,0.00021916,2]
[366670825,1750404638669,-500.0,0.00021916,2]
[366670826,1750404638679,-500.0,0.00021916,2]
[366670827,1750404638689,-648.49530647,0.00021916,2]
[366670828,1750404638700,-500.0,0.00021916,2]
[366670829,1750404638709,-506.11053506,0.00021917,2]
[366670830,1750404638719,-464.79897383,0.00021917,6]
[366670831,1750404638730,-451.33909305,0.00021917,6]
[366670832,1750404638739,-432.24776734,0.00021917,6]
[366670833,1750404638749,-462.89360324,0.00021917,6]
[366670834,1750404638759,-460.0,0.00021917,6]
[366670835,1750404638768,-469.4694135,0.00021917,6]
[366670836,1750404638777,-466.91415827,0.00021917,6]
[366670837,1750404638787,-464.13054868,0.00021917,6]
[366670838,1750404638798,-442.93734986,0.00021917,6]
[366670839,1750404638808,-469.22754939,0.00021917,6]
[366670840,1750404638818,-468.86643865,0.00021917,6]
[366670841,1750404638827,-348.4589898,0.00021917,6]
[366670842,1750404638838,-464.69266172,0.00021917,6]
[366670843,1750404638847,-464.95641363,0.00021917,6]
[366670844,1750404638857,-460.0,0.00021917,6]
[366670845,1750404638867,-430.0,0.00021917,6]
[366670846,1750404638877,-192.1356873,0.00021917,6]
[366670847,1750404638886,-419.37062446,0.00021917,6]
[366670848,1750404638896,-468.70407649,0.00021917,6]
[366670849,1750404638906,-470.03412207,0.00021917,6]
[366670850,1750404638916,-460.0,0.00021917,6]
[366670851,1750404638926,-318.50502363,0.00021917,6]
[366670852,1750404638936,-473.00290132,0.00021917,6]
[366670853,1750404638946,-461.56897989,0.00021917,6]
[366670854,1750404638956,-246.96977227,0.00021917,6]
[366670855,1750404638966,-432.7980816,0.00021917,6]
[366670856,1750404638976,-464.83330551,0.00021917,6]
[366670857,1750404638986,-472.0831194,0.00021917,6]
[366670858,1750404638996,-471.2921488,0.00021917,6]
[366670859,1750404639007,-460.59987609,0.00021917,6]
[366670860,1750404639018,-502.95349972,0.00021917,6]
[366670861,1750404639028,-478.89365153,0.00021917,6]
[366670862,1750404639038,-460.0,0.00021917,6]
[366670863,1750404639048,-462.82111286,0.00021917,6]
[366670864,1750404639058,-466.4389233,0.00021917,6]
[366670865,1750404639067,-462.53164425,0.00021917,6]
[366670866,1750404639077,-441.90303684,0.00021917,6]
[366670867,1750404639087,-468.74633757,0.00021917,6]
[366670868,1750404639099,-486.43762152,0.00021917,6]
[366670869,1750404639109,-273.07495909,0.00021917,6]
[366670870,1750404639119,-411.9588752,0.00021917,6]
[366670871,1750404639129,-470.57395064,0.00021917,6]
[366670872,1750404639138,-460.0,0.00021917,6]
[366670873,1750404639149,-411.22589353,0.00021917,6]
[366670874,1750404639159,-460.0,0.00021917,6]
[366670875,1750404639169,-568.40565356,0.00021917,6]
[366670876,1750404639179,-453.08105487,0.00021917,6]
[366670877,1750404639188,-438.17926939,0.00021917,6]
[366670878,1750404639198,-441.76301627,0.00021917,6]
[366670879,1750404639208,-463.44940989,0.00021917,6]
[366670880,1750404639217,-413.06476402,0.00021917,6]
[366670881,1750404639227,-203.48466018,0.00021917,6]
[366670882,1750404639237,-446.35988915,0.00021917,6]
[366670883,1750404639247,-460.0,0.00021917,6]
[366670884,1750404639256,-481.33044556,0.00021917,6]
[366670885,1750404639266,-442.88681069,0.00021917,6]
[366670886,1750404639276,-472.32460626,0.00021917,6]
[366670887,1750404639286,-460.0,0.00021917,2]
[366670888,1750404639295,-468.28197317,0.00021917,6]
[366670889,1750404639305,-433.01578945,0.00021917,6]
[366670890,1750404639314,-460.0,0.00021917,6]
[366670891,1750404639324,-1586.78,0.00021917,2]
[366670892,1750404639334,-456.25140968,0.00021917,6]
[366670893,1750404639344,-404.1652407,0.00021917,6]
[366670894,1750404639354,-457.10449703,0.00021917,6]
[366670895,1750404639363,-458.85870975,0.00021917,6]
[366670896,1750404639374,-460.0,0.00021917,6]
[366670897,1750404639384,-296.65501849,0.00021917,6]
[366670898,1750404639394,-435.24141904,0.00021917,6]
[366670899,1750404639404,-462.20076294,0.00021917,6]
[366670900,1750404639414,-472.01671494,0.00021917,6]
[366670901,1750404639423,-461.14285866,0.00021917,6]
[366670902,1750404639433,-473.32344696,0.00021917,6]
[366670903,1750404639443,-463.59415532,0.00021917,6]
[366670904,1750404639454,-466.35274921,0.00021917,6]
[366670905,1750404639464,-443.30339099,0.00021917,6]
[366670906,1750404639474,-444.80925618,0.00021917,6]
[366670907,1750404639485,-442.78217056,0.00021917,6]
[366670908,1750404639494,-468.10903227,0.00021917,6]
[366670909,1750404639505,-476.26024126,0.00021917,6]
[366670910,1750404639514,-460.0,0.00021917,6]
[366670911,1750404639523,-489.06072945,0.00021917,6]
[366670912,1750404639533,-403.9576002,0.00021917,6]
[366670913,1750404639543,-456.22563445,0.00021917,6]
[366670914,1750404639553,-480.54437492,0.00021917,6]
[366670915,1750404639563,-464.04070418,0.00021917,6]
[366670916,1750404639574,-460.0,0.00021917,6]
[366670917,1750404639583,-464.25596131,0.00021917,6]
[366670918,1750404639594,-469.86793147,0.00021917,6]
[366670919,1750404639603,-324.71288478,0.00021917,6]
[366670920,1750404639614,-462.09804449,0.00021917,6]
[366670921,1750404639624,-307.73692073,0.00021917,6]
[366670922,1750404639634,-392.4857228,0.00021917,6]
[366670923,1750404639645,-460.0,0.00021917,6]
[366670924,1750404639657,-460.0,0.00021917,6]
[366670926,1750404639666,-447.7658853,0.00021917,6]
[366670927,1750404639676,-460.0,0.00021917,6]
[366670928,1750404639686,-508.59519935,0.00021917,6]
[366670929,1750404639695,-470.1764589,0.00021917,6]
[366670930,1750404639705,-460.0,0.00021917,6]
[366670931,1750404639715,-449.20991437,0.00021917,6]
[366670932,1750404639725,-460.0,0.00021917,6]
[366670933,1750404639735,-460.0,0.00021917,6]
[366670934,1750404639745,-465.62698204,0.00021917,6]
[366670935,1750404639755,-460.0,0.00021917,6]
[366670936,1750404639764,-460.0,0.00021917,6]
[366670937,1750404639774,-460.0,0.00021917,6]
[366670938,1750404639784,-500.0,0.00021917,6]
[366670940,1750404639797,-466.28578307,0.00021917,6]
[366670942,1750404639807,-497.33396284,0.00021917,6]
[366670944,1750404639817,-412.35232109,0.00021917,6]
[366670945,1750404639826,-460.0,0.00021917,6]
[366670946,1750404639837,-460.0,0.00021917,6]
[366670948,1750404639847,-460.0,0.00021917,6]
[366670950,1750404639857,-440.7597444,0.00021917,6]
[366670952,1750404639867,-460.0,0.00021917,6]
[366670954,1750404639877,-404.85767026,0.00021917,6]
[366670955,1750404639888,-460.0,0.00021917,6]
[366670956,1750404639897,-460.0,0.00021917,6]
[366670957,1750404639907,-403.08024374,0.00021917,6]
[366670958,1750404639918,-452.77194789,0.00021917,6]
[366670959,1750404639928,-440.02075745,0.00021917,6]
[366670960,1750404639938,-464.34138887,0.00021917,6]
[366670961,1750404639947,-364.84039354,0.00021917,6]
[366670962,1750404639957,-460.0,0.00021917,6]
[366670963,1750404639967,-460.0,0.00021917,6]
[366670964,1750404639978,-472.26325735,0.00021917,6]
[366670965,1750404639988,-460.0,0.00021917,6]
[366670966,1750404640000,-446.18690292,0.00021917,6]
[366670967,1750404640010,-460.0,0.00021917,6]
[366670968,1750404640021,-460.0,0.00021917,6]
[366670969,1750404640031,-425.30392744,0.00021917,6]
[366670970,1750404640041,-460.0,0.00021917,6]
[366670971,1750404640052,-449.52525225,0.00021917,6]
[366670972,1750404640189,-466.61287722,0.00021917,6]
[366670973,1750404640201,-460.0,0.00021917,6]
[366670974,1750404640211,-467.42971707,0.00021917,6]
[366670975,1750404640221,-460.0,0.00021917,6]
[366670976,1750404640234,-469.0698191,0.00021917,6]
[366670978,1750404640244,-440.0,0.00021917,6]
[366670980,1750404640255,-450.90980832,0.00021917,6]
[366670982,1750404640267,-467.94826946,0.00021917,6]
[366670983,1750404640283,-460.0,0.00021917,6]
[366670985,1750404640294,-460.0,0.00021917,2]
[366670987,1750404640304,-445.84668366,0.00021917,6]
[366670988,1750404640314,-460.0,0.00021917,6]
[366670990,1750404640324,-500.0,0.00021917,6]
[366670991,1750404640335,-500.0,0.00021917,6]
[366670992,1750404640345,-500.0,0.00021917,6]
[366670993,1750404640354,-500.0,0.00021917,6]
[366670994,1750404640364,-500.0,0.00021917,6]
[366670996,1750404640373,-500.0,0.00021917,6]
[366670997,1750404640383,-460.0,0.00021917,6]
[366671000,1750404640394,-435.07499017,0.00021917,6]
[366671001,1750404640406,-481.47107951,0.00021917,6]
[366671003,1750404640416,-468.27553533,0.00021917,6]
[366671005,1750404640426,-460.0,0.00021917,6]
[366671007,1750404640436,-460.0,0.00021917,6]
[366671009,1750404640446,-468.93132132,0.00021917,6]
[366671011,1750404640456,-432.20196472,0.00021917,6]
[366671013,1750404640466,-460.0,0.00021917,6]
[366671015,1750404640476,-267.28641957,0.00021917,6]
[366671017,1750404640485,-500.0,0.00021917,6]
[366671019,1750404640495,-500.0,0.00021917,6]
[366671020,1750404640504,-500.0,0.00021917,6]
[366671021,1750404640513,-500.0,0.00021917,6]
[366671022,1750404640523,-504.41932248,0.00021917,2]
[366671023,1750404640532,-460.0,0.00021917,6]
[366671024,1750404640541,-461.46220682,0.00021917,6]
[366671025,1750404640551,-205.13264581,0.00021917,6]
[366671026,1750404640560,-441.26392238,0.00021917,6]
[366671027,1750404640569,-464.41290602,0.00021917,6]
[366671028,1750404640578,-460.0,0.00021917,6]
[366671029,1750404640587,-466.39428457,0.00021917,6]
[366671030,1750404640597,-460.0,0.00021917,6]
[366671031,1750404640607,-447.77058546,0.00021917,6]
[366671032,1750404640617,-460.0,0.00021917,6]
[366671033,1750404640626,-461.04119892,0.00021917,6]
[366671034,1750404640636,-455.92135689,0.00021917,6]
[366671035,1750404640646,-433.64960344,0.00021917,6]
[366671036,1750404640655,-465.70258976,0.00021917,6]
[366671037,1750404640665,-460.0,0.00021917,6]
[366671038,1750404640675,-151.0,0.00021917,2]
[366671039,1750404640684,-471.72431513,0.00021917,6]
[366671040,1750404640694,-179.12234802,0.00021917,6]
[366671041,1750404640703,-462.71295845,0.00021917,6]
[366671042,1750404640713,-460.0,0.00021917,6]
[366671043,1750404640722,-464.5498166,0.00021917,6]
[366671044,1750404640732,-469.75949857,0.00021917,6]
[366671045,1750404640741,-469.40107357,0.00021917,6]
[366671046,1750404640752,-460.0,0.00021917,6]
[366671047,1750404640761,-432.12352491,0.00021917,6]
[366671049,1750404640772,-465.58730031,0.00021917,6]
[366671050,1750404640781,-462.37488261,0.00021917,6]
[366671052,1750404640792,-401.78353516,0.00021917,6]
[366671054,1750404640803,-465.46342854,0.00021917,6]
[366671056,1750404640813,-535.78,0.00021917,6]
[366671058,1750404640822,-467.67186364,0.00021917,6]
[366671060,1750404640832,-460.0,0.00021917,6]
[366671062,1750404640842,-460.0,0.00021917,6]
[366671064,1750404640851,-467.69280529,0.00021917,6]
[366671066,1750404640861,-460.92562799,0.00021917,6]
[366671068,1750404640871,-460.0,0.00021917,6]
[366671070,1750404640882,-441.36987916,0.00021917,6]
[366671072,1750404640891,-469.38394708,0.00021917,6]
[366671074,1750404640901,-579.13301094,0.00021917,6]
[366671076,1750404640911,-453.39091187,0.00021917,6]
[366671078,1750404640920,-460.0,0.00021917,6]
[366671080,1750404640930,-466.64943497,0.00021917,6]
[366671082,1750404640939,-1475.62,0.00021917,6]
[366671084,1750404640949,-439.64341395,0.00021917,6]
[366671086,1750404640958,-460.0,0.00021917,6]
[366671088,1750404640968,-465.53,0.00021917,6]
[366671090,1750404640978,-153.49897156,0.00021943,2]
[366671092,1750404640987,-100000.0,0.0002199,2]
[366671094,1750404640997,-1000.0,0.00022,2]
[366671096,1750404641007,-37815.54493851,0.00022,2]
[366671098,1750404641017,-303.67914074,0.00022021,2]
[366671100,1750404641027,-502.72465573,0.00022021,2]
[366671102,1750404641037,-466.62569874,0.00022021,2]
[366671104,1750404641047,-500.0,0.00022021,2]
[366671106,1750404641056,-442.82995944,0.00022021,2]
[366671108,1750404641066,-591.66591972,0.00022038,6]
[366671110,1750404641076,-500.0,0.0002205,2]
[366671112,1750404641085,-500.0,0.0002205,2]
[366671114,1750404641095,-500.0,0.0002205,2]
[366671116,1750404641104,-500.0,0.0002205,2]
[366671118,1750404641114,-500.0,0.0002206,2]
[366671120,1750404641124,-500.0,0.0002206,2]
[366671122,1750404641133,-500.0,0.0002206,2]
[366671124,1750404641143,-500.0,0.00022065,2]
[366671126,1750404641153,-500.0,0.00022087,2]
[366671128,1750404641163,-211.06366694,0.000221,2]
[366671129,1750404641172,-500.0,0.000221,2]
[366671132,1750404641183,-976.7,0.00022147,2]
[366671133,1750404641194,-591.66591972,0.00022176,6]
[366671135,1750404641205,-500.0,0.0002219,6]
[366671137,1750404641214,-500.0,0.0002219,6]
[366671139,1750404641224,-1586.78,0.00022191,2]
[366671141,1750404641234,-460.0,0.00022191,6]
[366671143,1750404641243,-460.0,0.00022191,6]
[366671145,1750404641253,-460.0,0.00022191,6]
[366671147,1750404641262,-460.0,0.00022191,6]
[366671149,1750404641272,-1475.62,0.00022191,6]
[366671151,1750404641281,-480.39981877,0.00022261,2]
[366671153,1750404641291,-591.66591972,0.00022314,7]
[366671155,1750404641300,-492.67350266,0.00022364,2]
[366671157,1750404641310,-500.0,0.00022367,6]
[366671159,1750404641321,-213.51557418,0.0002243,2]
[366671161,1750404641331,-836.27303475,0.0002243,2]
[366671163,1750404641340,-160.0,0.0002243,2]
[366671165,1750404641350,-230.06456406,0.0002243,2]
[366671167,1750404641360,-160.0,0.0002243,2]